bitfinex-derivatives/quotes_BTCF0:USTF0_20241223
["timestamp","ask_amount","ask_price","bid_price","bid_amount"]
[1734955766179,0.052044,96182.0,96171.0,0.24931509]
[1734955766377,0.052044,96182.0,96178.0,0.3608]
[1734955767387,0.052044,96182.0,96179.0,1.5]
[1734955767586,0.053044,96182.0,96180.0,0.18671761]
[1734955768290,0.055044,96182.0,96180.0,0.18671761]
[1734955768786,0.055044,96182.0,96181.0,0.18671761]
[1734955769582,0.053044,96182.0,96181.0,0.18671761]
[1734955769781,0.056044,96182.0,96181.0,0.18671761]
[1734955769984,0.052046,96179.0,96178.0,0.18671761]
[1734955771581,0.054046,96179.0,96178.0,0.18671761]
[1734955771787,0.052047,96177.0,96176.0,0.18671761]
[1734955773092,0.052047,96177.0,96170.0,1.74995509]
[1734955773284,0.052047,96177.0,96170.0,1.74931509]
[1734955774087,0.059047,96177.0,96176.0,0.001]
[1734955774290,0.062047,96177.0,96176.0,0.001]
[1734955774690,0.060047,96177.0,96171.0,0.24931509]
[1734955775286,0.062047,96177.0,96176.0,0.001]
[1734955775887,0.059047,96177.0,96176.0,0.001]
[1734955776096,0.061047,96177.0,96176.0,0.001]
[1734955776683,0.059047,96177.0,96176.0,0.001]
[1734955776886,0.062047,96177.0,96176.0,0.001]
[1734955777294,0.055047,96177.0,96171.0,0.24931509]
[1734955777492,0.060047,96177.0,96171.0,0.24931509]
[1734955777692,0.05205,96172.0,96171.0,0.24931509]
[1734955779099,0.05205,96172.0,96169.0,0.30311509]
[1734955780093,0.05705,96172.0,96169.0,0.30311509]
[1734955780493,0.05705,96172.0,96170.0,0.24931509]
[1734955780494,0.05905,96172.0,96170.0,0.24931509]
[1734955781289,0.05205,96171.0,96169.0,0.30311509]
[1734955781591,0.052051,96170.0,96169.0,0.24931509]
[1734955782399,0.052051,96170.0,96165.0,0.18670384]
[1734955782588,0.052053,96166.0,96165.0,0.18670384]
[1734955783590,0.052055,96163.0,96161.0,0.18670384]
[1734955784190,0.052055,96162.0,96161.0,0.18670384]
[1734955784801,0.052055,96162.0,96160.0,0.18670384]
[1734955785701,0.056055,96162.0,96160.0,0.18670384]
[1734955785994,0.004,96162.0,96160.0,0.18670384]
[1734955786189,0.052056,96161.0,96160.0,0.18670384]
[1734955787799,0.052056,96161.0,96158.0,0.3608]
[1734955788098,0.055056,96161.0,96158.0,0.3608]
[1734955788401,0.056056,96161.0,96158.0,0.3608]
[1734955788894,0.053056,96161.0,96158.0,0.3608]
[1734955789086,0.055056,96161.0,96158.0,0.61011509]
[1734955789289,0.056056,96161.0,96158.0,0.61011509]
[1734955790392,0.056056,96161.0,96159.0,0.24931509]
[1734955791502,0.055056,96161.0,96159.0,0.24931509]
[1734955791701,0.056056,96161.0,96160.0,0.24931509]
[1734955792003,0.001,96161.0,96160.0,0.24931509]
[1734955792203,0.004,96161.0,96160.0,0.24931509]
[1734955793098,0.004,96161.0,96158.0,0.3608]
[1734955793502,0.056056,96161.0,96158.0,0.3608]
[1734955793704,0.053056,96161.0,96158.0,0.3608]
[1734955794004,0.056056,96161.0,96158.0,0.3608]
[1734955794304,0.053056,96161.0,96158.0,0.3608]
[1734955794506,0.054056,96161.0,96158.0,0.3608]
[1734955794705,0.052057,96159.0,96158.0,0.3608]
[1734955796806,0.053057,96159.0,96158.0,0.3608]
[1734955800309,0.001,96159.0,96157.0,0.31164387]
[1734955800505,0.052057,96158.0,96157.0,0.31164387]
[1734955801319,0.052057,96158.0,96152.0,0.31164387]
[1734955801604,0.05206,96153.0,96152.0,0.31164387]
[1734955803008,0.09335784,96155.0,96149.0,0.24929629]
[1734955803201,0.052061,96150.0,96149.0,0.24929629]
[1734955804201,0.052061,96150.0,96149.0,0.25029629]
[1734955804411,0.052061,96150.0,96149.0,0.001]
[1734955804997,0.052061,96150.0,96149.0,0.002]
[1734955806804,0.09335784,96154.0,96153.0,0.05206]
[1734955807014,0.3608,96177.0,96159.0,0.052057]
[1734955807310,0.052043,96184.0,96167.0,0.052052]
[1734955807616,0.052044,96183.0,96170.0,0.05205]
[1734955807803,0.30027923,96190.0,96167.0,0.3608]
[1734955807804,0.08342747,96180.0,96167.0,0.3608]
[1734955808003,0.052042,96187.0,96167.0,0.3608]
[1734955808213,0.08342747,96180.0,96167.0,0.3608]
[1734955808511,0.052051,96169.0,96167.0,0.3608]
[1734955809314,0.052051,96169.0,96168.0,0.28989826]
[1734955810405,0.058051,96169.0,96168.0,0.28989826]
[1734955810810,1.073651,96169.0,96159.0,0.19727029]
[1734955811013,1.073651,96169.0,96107.0,0.49401358]
[1734955811014,0.3608,96160.0,96107.0,0.49401358]
[1734955811205,0.773674,96126.0,96107.0,0.49461358]
[1734955812113,0.052081,96114.0,96113.0,0.18686558]
[1734955812316,0.412881,96114.0,96113.0,0.18686558]
[1734955812820,0.712881,96114.0,96113.0,0.1350938]
[1734955813013,0.412881,96114.0,96113.0,0.1350938]
[1734955813215,0.412881,96114.0,96113.0,0.1400938]
[1734955813517,0.48038731,96114.0,96113.0,0.005]
[1734955813708,0.052086,96106.0,96100.0,0.03310958]
[1734955814017,0.3608,96101.0,96100.0,0.03310958]
[1734955814511,0.42830631,96101.0,96100.0,0.03310958]
[1734955814707,0.42840807,96101.0,96100.0,0.03310958]
[1734955814906,0.48049607,96101.0,96100.0,0.03310958]
[1734955815111,0.48049607,96101.0,96100.0,0.03410958]
[1734955815716,0.48049607,96101.0,96089.0,0.4193]
[1734955815717,0.052094,96090.0,96089.0,0.0585]
[1734955815909,0.412894,96090.0,96089.0,0.0585]
[1734955816104,0.412894,96090.0,96065.0,0.3645]
[1734955816311,0.052103,96075.0,96066.0,0.0579]
[1734955816517,0.36091308,96074.0,96066.0,0.0579]
[1734955817607,0.052103,96073.0,96066.0,0.0579]
[1734955818017,0.052105,96071.0,96062.0,0.00156153]
[1734955818220,0.36091308,96074.0,96066.0,0.002]
[1734955818416,0.052106,96067.0,96066.0,0.002]
[1734955818719,0.05211,96060.0,96059.0,0.05501]
[1734955818923,0.41301128,96060.0,96059.0,0.05501]
[1734955819520,0.052115,96051.0,96033.0,0.00156199]
[1734955819817,0.41302808,96051.0,96033.0,0.00156199]
[1734955820609,0.47815965,96051.0,96050.0,0.00400021]
[1734955821432,0.47815965,96051.0,96050.0,0.00600021]
[1734955821719,0.66388517,96051.0,96050.0,0.00600021]
[1734955823113,0.052125,96032.0,96021.0,1.5]
[1734955823310,0.412925,96032.0,96021.0,1.5]
[1734955823716,0.052126,96031.0,96016.0,0.00952923]
[1734955824018,0.052126,96031.0,96014.0,0.0568]
[1734955824216,0.052126,96031.0,96030.0,1.5]
[1734955825016,0.053126,96031.0,96030.0,1.5]
[1734955825621,0.052126,96031.0,96030.0,1.5]
[1734955825821,0.053126,96031.0,96030.0,1.51]
[1734955827223,0.001,96031.0,96030.0,1.51]
[1734955827524,0.052122,96039.0,96030.0,1.51]
[1734955827725,0.052122,96039.0,96038.0,0.3608]
[1734955827925,0.36247549,96051.0,96038.0,0.3608]
[1734955828121,0.052106,96068.0,96047.0,0.412917]
[1734955828312,0.3608,96075.0,96058.0,0.3608]
[1734955828511,0.052103,96074.0,96058.0,0.3608]
[1734955828915,0.052107,96067.0,96058.0,0.3608]
[1734955829115,7.572e-05,96066.0,96058.0,0.3608]
[1734955829319,0.05218272,96066.0,96058.0,0.3608]
[1734955829519,7.572e-05,96066.0,96058.0,0.3658]
[1734955829719,0.05211,96062.0,96058.0,0.3658]
[1734955829918,0.05211,96062.0,96059.0,1.5]
[1734955830716,0.05211,96061.0,96059.0,1.5]
[1734955831229,0.3608,96065.0,96047.0,0.3608]
[1734955831416,0.052115,96051.0,96048.0,0.059]
[1734955831817,0.052115,96051.0,96049.0,1.5]
[1734955832423,0.052115,96051.0,96040.0,0.08342747]
[1734955832730,0.052115,96051.0,96048.0,0.001]
[1734955833326,0.3608,96053.0,96040.0,0.09301205]
[1734955834028,0.052117,96047.0,96040.0,0.09301205]
[1734955834326,0.052117,96047.0,96040.0,0.00958458]
[1734955834528,0.052117,96047.0,96037.0,0.13555047]
[1734955834921,0.052117,96047.0,96040.0,0.001]
[1734955835614,0.053117,96047.0,96039.0,0.0607]
[1734955835928,0.001,96047.0,96042.0,0.3608]
[1734955836130,0.052118,96046.0,96042.0,0.3608]
[1734955836325,0.3608,96056.0,96040.0,0.003]
[1734955836631,0.052119,96044.0,96040.0,0.003]
[1734955836925,0.052119,96044.0,96040.0,0.055121]
[1734955837132,0.052119,96044.0,96041.0,0.05212]
[1734955837333,0.052115,96051.0,96044.0,0.052119]
[1734955837634,0.052116,96049.0,96045.0,0.052118]
[1734955837936,0.001,96047.0,96045.0,0.052118]
[1734955838633,0.052116,96049.0,96045.0,0.052118]
[1734955838840,0.3608,96056.0,96049.0,0.052116]
[1734955839131,0.052114,96053.0,96049.0,0.052116]
[1734955839524,0.052114,96053.0,96052.0,0.052115]
[1734955839726,0.052111,96060.0,96052.0,0.3]
[1734955839933,0.15408778,96062.0,96060.0,0.05211]
[1734955840119,0.15408778,96062.0,96061.0,0.0574]
[1734955840318,0.15408778,96062.0,96061.0,0.1138]
[1734955841128,0.05919311,96065.0,96063.0,0.052108]
[1734955841327,0.05919311,96065.0,96064.0,0.4157]
[1734955841727,0.05919311,96065.0,96064.0,0.0549]
[1734955842242,0.006,96065.0,96064.0,0.107008]
[1734955842532,0.009,96065.0,96064.0,0.107008]
[1734955843529,0.06819311,96065.0,96064.0,0.108008]
[1734955844826,0.009,96065.0,96064.0,0.108008]
[1734955848130,0.009,96065.0,96062.0,0.24996265]
[1734955849147,0.009,96065.0,96064.0,0.052108]
[1734955849443,0.003,96065.0,96064.0,0.052108]
[1734955849644,0.009,96065.0,96064.0,0.052108]
[1734955850037,0.006,96065.0,96064.0,0.052108]
[1734955850247,0.009,96065.0,96064.0,0.052108]
[1734955851242,0.003,96065.0,96064.0,0.052108]
[1734955851438,0.01,96065.0,96064.0,0.053108]
[1734955852345,0.062108,96065.0,96064.0,0.001]
[1734955852544,0.117908,96065.0,96064.0,0.001]
[1734955853635,0.17565661,96065.0,96064.0,0.001]
[1734955855042,0.12354861,96065.0,96064.0,0.001]
[1734955857642,0.25429174,96065.0,96064.0,0.001]
[1734955859447,0.01,96065.0,96064.0,0.001]
[1734955862044,0.01,96065.0,96064.0,0.053108]
[1734955863244,0.052108,96064.0,96056.0,0.01243539]
[1734955863451,0.052111,96059.0,96058.0,0.052111]
[1734955863646,0.3608,96064.0,96055.0,0.08342747]
[1734955863845,0.412912,96056.0,96055.0,0.08342747]
[1734955864149,0.412912,96056.0,96053.0,0.06447611]
[1734955864356,0.107213,96055.0,96053.0,0.01236211]
[1734955864547,0.052115,96051.0,96046.0,0.052118]
[1734955864750,0.3608,96047.0,96046.0,0.06427176]
[1734955865647,0.4183093,96047.0,96046.0,0.01415376]
[1734955865946,0.4183093,96047.0,96036.0,0.052123]
[1734955866153,0.3608,96039.0,96036.0,0.052123]
[1734955867154,0.3608,96039.0,96038.0,0.01356693]
[1734955867651,0.3608,96039.0,96038.0,0.00156181]
[1734955867946,0.3608,96039.0,96038.0,0.00356181]
[1734955868149,0.4169,96039.0,96038.0,0.00356181]
[1734955868352,0.4179,96039.0,96038.0,0.00456181]
[1734955868856,0.41798321,96039.0,96038.0,0.00456181]
[1734955869252,0.47518321,96039.0,96038.0,0.00456181]
[1734955869651,0.53265293,96039.0,96038.0,0.00456181]
[1734955869852,0.53365293,96039.0,96038.0,0.00256181]
[1734955870351,0.53765293,96039.0,96038.0,0.00156181]
[1734955870551,0.42535293,96039.0,96038.0,0.00156181]
[1734955870944,0.36788321,96039.0,96038.0,0.00156181]
[1734955871756,0.36288321,96039.0,96038.0,0.00156181]
[1734955871951,0.36588321,96039.0,96038.0,0.00156181]
[1734955872352,0.36488321,96039.0,96038.0,0.00156181]
[1734955873157,0.36388321,96039.0,96038.0,0.00356181]
[1734955873347,0.36588321,96039.0,96038.0,0.00356181]
[1734955874058,0.36188321,96039.0,96038.0,0.00556181]
[1734955875258,0.00108321,96039.0,96038.0,0.00556181]
[1734955875650,0.12441132,96053.0,96052.0,0.052115]
[1734955876055,0.052122,96039.0,96038.0,0.01772695]
[1734955876250,0.773722,96039.0,96038.0,0.00556181]
[1734955877063,0.773722,96039.0,96026.0,0.052129]
[1734955877064,0.052127,96030.0,96026.0,0.052129]
[1734955877361,0.3608,96027.0,96026.0,0.052129]
[1734955878251,0.3608,96027.0,96025.0,0.02364]
[1734955878570,0.412928,96027.0,96025.0,0.02364]
[1734955879259,0.3608,96027.0,96009.0,0.0015624]
[1734955879564,0.3608,96010.0,96009.0,0.0015624]
[1734955880456,0.3608,96010.0,96009.0,0.0045624]
[1734955880765,0.3618,96010.0,96009.0,0.0055624]
[1734955883662,0.774737,96010.0,96009.0,0.0055624]
[1734955889572,0.774737,96010.0,96009.0,0.004]
[1734955890771,0.052142,96001.0,96000.0,0.1]
[1734955890965,0.412942,96001.0,96000.0,0.1]
[1734955892373,0.412942,96001.0,96000.0,0.104]
[1734955893576,0.413942,96001.0,96000.0,0.105]
[1734955894480,0.53835332,96001.0,96000.0,0.105]
[1734955896078,0.413942,96001.0,96000.0,0.105]
[1734955897878,0.05215,95987.0,95986.0,8.169e-05]
[1734955898070,0.41295,95987.0,95986.0,8.169e-05]
[1734955898675,0.6608,95987.0,95969.0,60.0]
[1734955898886,0.773759,95970.0,95969.0,60.0]
[1734955899276,1.073759,95970.0,95969.0,60.0]
[1734955899867,1.073759,95970.0,95969.0,60.001]
[1734955900272,1.073759,95970.0,95969.0,59.76071833]
[1734955900786,1.33681229,95970.0,95969.0,57.69427816]
[1734955901573,1.33681229,95970.0,95969.0,57.66209148]
[1734955901574,1.33981229,95970.0,95969.0,57.66209148]
[1734955901780,1.15326916,95970.0,95969.0,57.66209148]
[1734955902084,1.15326916,95970.0,95969.0,57.16112471]
[1734955903396,1.15326916,95970.0,95969.0,56.92084304]
[1734955903575,1.15335085,95970.0,95969.0,56.92084304]
[1734955903977,1.15326916,95970.0,95969.0,56.92084304]
[1734955904586,1.15326916,95970.0,95969.0,56.56546867]
[1734955904990,1.33860719,95970.0,95969.0,56.56546867]
[1734955905876,1.33860719,95970.0,95969.0,56.49668392]
[1734955906073,1.33860719,95970.0,95969.0,56.4893787]
[1734955906272,1.15326916,95970.0,95969.0,55.55467129]
[1734955906477,1.15326916,95970.0,95969.0,55.37168884]
[1734955906777,1.15326916,95970.0,95969.0,54.69532884]
[1734955907291,1.15335085,95970.0,95969.0,52.28557803]
[1734955907586,1.15326916,95970.0,95969.0,50.20242089]
[1734955907788,1.15726916,95970.0,95969.0,50.05940851]
[1734955907975,1.15726916,95970.0,95969.0,49.72505717]
[1734955908371,1.15826916,95970.0,95969.0,49.72505717]
[1734955909079,1.15426916,95970.0,95969.0,49.72505717]
[1734955909278,1.15826916,95970.0,95969.0,49.20308763]
[1734955909478,1.15926916,95970.0,95969.0,49.17508763]
[1734955909879,1.15926916,95970.0,95969.0,48.72607708]
[1734955910379,1.15926916,95970.0,95969.0,48.69224048]
[1734955910681,1.15926916,95970.0,95969.0,48.4581575]
[1734955911182,1.15926916,95970.0,95969.0,48.4491575]
[1734955911394,1.15926916,95970.0,95969.0,48.42174606]
[1734955911580,1.15926916,95970.0,95969.0,48.41774606]
[1734955911979,1.15926916,95970.0,95969.0,48.39260547]
[1734955912791,1.15935085,95970.0,95969.0,47.89151448]
[1734955913088,1.15926916,95970.0,95969.0,47.89151448]
[1734955913782,1.10176777,95970.0,95969.0,47.33801229]
[1734955913977,1.10184946,95970.0,95969.0,47.33801229]
[1734955914183,1.10176777,95970.0,95969.0,47.33801229]
[1734955914586,1.10176777,95970.0,95969.0,47.12924655]
[1734955915080,1.10176777,95970.0,95969.0,47.09724656]
[1734955915479,1.10176777,95970.0,95969.0,47.09224657]
[1734955916282,1.10176777,95970.0,95969.0,47.019067]
[1734955916587,1.10176777,95970.0,95969.0,46.19883365]
[1734955916986,1.10176777,95970.0,95969.0,44.40907925]
[1734955917191,1.10176777,95970.0,95969.0,42.94533597]
[1734955917378,1.10576777,95970.0,95969.0,42.94533597]
[1734955917578,1.10576777,95970.0,95969.0,42.53114877]
[1734955917780,1.12140777,95970.0,95969.0,42.41848065]
[1734955917978,1.12140777,95970.0,95969.0,42.40863065]
[1734955918190,1.12140777,95970.0,95969.0,42.36133417]
[1734955918486,1.10576777,95970.0,95969.0,42.36133417]
[1734955918792,1.12140777,95970.0,95969.0,41.00313065]
[1734955918984,1.12140777,95970.0,95969.0,40.99120422]
[1734955919290,1.12140777,95970.0,95969.0,40.87425197]
[1734955919487,1.12140777,95970.0,95969.0,40.5610524]
[1734955919687,1.12140777,95970.0,95969.0,40.24785283]
[1734955919890,1.12140777,95970.0,95969.0,40.21725197]
[1734955920184,1.12140777,95970.0,95969.0,39.07996884]
[1734955920387,1.12140777,95970.0,95969.0,38.6006009]
[1734955920578,1.12140777,95970.0,95969.0,37.7678959]
[1734955920782,1.12140777,95970.0,95969.0,37.17511717]
[1734955920984,1.12140777,95970.0,95969.0,37.13753718]
[1734955921185,1.17215277,95970.0,95969.0,35.4302626]
[1734955921481,1.17215277,95970.0,95969.0,33.12177095]
[1734955921689,1.17215277,95970.0,95969.0,31.69952038]
[1734955921884,1.17215277,95970.0,95969.0,30.61199694]
[1734955922078,1.17215277,95970.0,95969.0,29.53265975]
[1734955922278,1.17215277,95970.0,95969.0,28.64313583]
[1734955922473,1.16315277,95970.0,95969.0,28.32986804]
[1734955922783,1.16315277,95970.0,95969.0,27.96860509]
[1734955922784,1.15915277,95970.0,95969.0,27.96860509]
[1734955922984,1.16060455,95970.0,95969.0,27.55254528]
[1734955923180,1.16067848,95970.0,95969.0,27.16443098]
[1734955923381,1.16060455,95970.0,95969.0,27.03243098]
[1734955923582,1.16060455,95970.0,95969.0,26.95524694]
[1734955923784,1.16068624,95970.0,95969.0,26.64197915]
[1734955923981,1.16060455,95970.0,95969.0,26.01544357]
[1734955924288,1.16060455,95970.0,95969.0,25.70217578]
[1734955924692,1.16060455,95970.0,95969.0,0.001]
[1734955926784,0.05216,95968.0,95923.0,0.0624]
[1734955926984,0.08342747,95933.0,95923.0,0.0624]
[1734955927183,0.35052,95932.0,95923.0,0.0624]
[1734955927478,0.35052,95932.0,95924.0,1.25040006]
[1734955927684,8.169e-05,95931.0,95924.0,1.25040006]
[1734955927989,0.35052,95932.0,95924.0,1.25040006]
[1734955928185,0.00145178,95928.0,95924.0,1.25040006]
[1734955928786,0.3608,95927.0,95924.0,1.25140006]
[1734955928996,0.412983,95927.0,95924.0,1.25140006]
[1734955929290,0.05363478,95926.0,95924.0,1.24911773]
[1734955929888,0.01564,95925.0,95924.0,0.001]
[1734955930186,0.01709178,95925.0,95924.0,0.001]
[1734955930391,0.01709178,95925.0,95915.0,0.0599]
[1734955930589,0.3608,95916.0,95915.0,0.0599]
[1734955930785,0.052196,95903.0,95902.0,0.1208]
[1734955931091,0.412996,95903.0,95902.0,0.1208]
[1734955931289,0.41444778,95903.0,95902.0,1.12855437]
[1734955932885,0.41944778,95903.0,95902.0,1.12855437]
[1734955933393,0.42344778,95903.0,95902.0,1.12855437]
[1734955933594,0.42544778,95903.0,95902.0,1.12855437]
[1734955934195,0.51868551,95903.0,95902.0,1.12855437]
[1734955934391,0.52068551,95903.0,95902.0,1.12855437]
[1734955934701,0.46848951,95903.0,95902.0,1.12855437]
[1734955934994,0.46848951,95903.0,95902.0,1.75375437]
[1734955935586,0.36140001,95916.0,95912.0,0.6252]
[1734955935786,0.08342747,95922.0,95912.0,0.6252]
[1734955935987,0.1553734,95915.0,95913.0,0.04032917]
[1734955936891,0.05219,95914.0,95913.0,0.04032917]
[1734955937398,0.05227169,95914.0,95913.0,0.04032917]
[1734955937596,0.05219,95914.0,95913.0,0.04132917]
[1734955937991,0.06783,95914.0,95913.0,0.04132917]
[1734955938391,0.05219,95914.0,95913.0,0.04132917]
[1734955938594,0.06783,95914.0,95912.0,0.6252]
[1734955939096,0.06883,95914.0,95913.0,0.007]
[1734955939398,0.01664,95914.0,95913.0,0.011]
[1734955940189,0.01564,95914.0,95913.0,0.3648]
[1734955940393,0.01664,95914.0,95913.0,0.3648]
[1734955940793,0.01664,95914.0,95913.0,0.3718]
[1734955941492,0.01664,95914.0,95913.0,0.011]
[1734955949892,0.37744,95914.0,95913.0,0.011]
[1734955950500,0.37752169,95914.0,95913.0,0.011]
[1734955950703,0.42828299,95914.0,95913.0,0.011]
[1734955951209,0.4282013,95914.0,95913.0,0.011]
[1734955957310,0.42828299,95914.0,95913.0,0.011]
[1734955957615,0.4282013,95914.0,95913.0,0.011]
[1734955958307,0.42828299,95914.0,95913.0,0.011]
[1734955958514,0.4282013,95914.0,95913.0,0.011]
[1734955961107,0.4024013,95914.0,95913.0,1.2362]
[1734955961309,0.4024013,95914.0,95913.0,1.28839]
[1734955961310,0.08298299,95914.0,95913.0,1.28839]
[1734955961917,0.08298299,95914.0,95913.0,1.2362]
[1734955963618,0.08298299,95914.0,95913.0,1.16419999]
[1734955972243,0.08298299,95914.0,95913.0,27.04939999]
[1734955972941,0.0829013,95914.0,95913.0,25.8852]
[1734955973144,0.09655596,95914.0,95913.0,25.8852]
[1734955973640,0.09655596,95914.0,95913.0,25.72385391]
[1734955975630,0.09655596,95914.0,95913.0,25.71044086]
[1734955975834,0.09655596,95914.0,95913.0,25.68905288]
[1734955977132,0.09655596,95914.0,95913.0,26.67505288]
[1734955977335,0.0829013,95914.0,95913.0,26.67505288]
[1734955977739,0.0985413,95914.0,95913.0,26.67505288]
[1734955977941,0.14930785,95914.0,95913.0,26.67505288]
[1734955978537,0.13374734,95914.0,95913.0,27.21405287]
[1734955978749,0.13374734,95914.0,95913.0,27.14205286]
[1734955979243,0.08298079,95914.0,95913.0,27.14205286]
[1734955980339,0.0829013,95914.0,95913.0,27.14205286]
[1734955983553,0.08298299,95914.0,95913.0,27.14205286]
[1734955983853,0.08298299,95914.0,95913.0,27.07005285]
[1734955984548,0.15562182,95922.0,95913.0,27.07005285]
[1734955984754,0.08342747,95940.0,95928.0,0.6252]
[1734955985049,0.49850001,95938.0,95936.0,0.6252]
[1734955985249,0.13770001,95938.0,95936.0,0.6252]
[1734955985453,0.1371,95938.0,95936.0,0.6252]
[1734955986350,0.12454517,95937.0,95936.0,0.6252]
[1734955986946,0.12954517,95937.0,95936.0,0.6252]
[1734955987450,0.12454517,95937.0,95936.0,0.6252]
[1734955987652,0.12954517,95937.0,95936.0,0.6252]
[1734955987958,0.0808,95937.0,95936.0,0.6252]
[1734955988656,0.0808,95937.0,95936.0,0.55319999]
[1734955993662,0.0808,95937.0,95936.0,0.48119998]
[1734955994057,0.0808,95937.0,95936.0,0.72844506]
[1734955997964,0.09644,95937.0,95936.0,0.72844506]
[1734955998665,0.09644,95937.0,95936.0,0.65644505]
[1734955999667,0.02264,95937.0,95936.0,0.65644505]
[1734956001763,0.02264,95937.0,95936.0,0.60426705]
[1734956003570,0.02264,95937.0,95936.0,0.53226704]
[1734956008668,0.02264,95937.0,95936.0,0.46026703]
[1734956008865,0.07338028,95937.0,95936.0,0.46026703]
[1734956010578,0.07338028,95937.0,95936.0,0.51244503]
[1734956012776,0.05774028,95937.0,95936.0,0.51244503]
[1734956013467,0.2132332,95945.0,95936.0,0.36453955]
[1734956013672,0.32897272,95960.0,95944.0,0.62516895]
[1734956013871,0.32897272,95960.0,95952.0,0.62599995]
[1734956014787,0.00156439,95953.0,95952.0,0.62599995]
[1734956014975,0.00656439,95953.0,95952.0,0.62599995]
[1734956015681,0.00156439,95953.0,95952.0,0.62599995]
[1734956015980,0.00256439,95953.0,95952.0,0.62599995]
[1734956016974,0.00356439,95953.0,95952.0,0.62599995]
[1734956017682,0.19077426,95953.0,95952.0,0.62599995]
[1734956018784,0.19077426,95953.0,95952.0,0.55399994]
[1734956019175,0.00356439,95953.0,95952.0,0.55399994]
[1734956023490,0.07476439,95953.0,95952.0,0.55399994]
[1734956023684,0.07476439,95953.0,95952.0,0.48199993]
[1734956026586,0.23052395,95953.0,95952.0,0.48199993]
[1734956028688,0.23052395,95953.0,95952.0,0.40999992]
[1734956029294,0.23052395,95953.0,95952.0,0.26519995]
[1734956029995,0.23052395,95953.0,95952.0,0.31737295]
[1734956030783,0.1254978,95953.0,95952.0,0.31737295]
[1734956031792,0.1254978,95953.0,95952.0,0.26519995]
[1734956032290,0.07476439,95953.0,95952.0,0.26519995]
[1734956032488,0.00356439,95953.0,95952.0,0.31736895]
[1734956033687,0.00356439,95953.0,95952.0,0.24536894]
[1734956034891,0.15940734,95953.0,95952.0,0.24536894]
[1734956036191,0.00356439,95953.0,95952.0,0.24536894]
[1734956038197,0.00356439,95953.0,95952.0,0.19319994]
[1734956038592,0.00356439,95953.0,95952.0,0.12119993]
[1734956039495,0.05429631,95953.0,95952.0,0.17336893]
[1734956040989,0.05429631,95953.0,95952.0,0.53416893]
[1734956041806,0.18720987,95961.0,95954.0,0.12119993]
[1734956041995,0.18720987,95961.0,95960.0,0.412964]
[1734956042191,0.18720987,95961.0,95960.0,0.53416393]
[1734956043098,0.006,95961.0,95960.0,0.53516393]
[1734956043499,0.008,95961.0,95960.0,0.53516393]
[1734956043700,0.003,95961.0,95960.0,0.46916392]
[1734956044297,0.001,95961.0,95960.0,0.47116392]
[1734956045703,0.1061,95978.0,95961.0,0.12119993]
[1734956045903,0.1061,95978.0,95970.0,0.53415893]
[1734956046290,0.00060001,95979.0,95970.0,0.53415893]
[1734956047006,0.18720987,95980.0,95970.0,0.54843825]
[1734956047202,0.18720987,95988.0,95970.0,0.55143825]
[1734956048301,0.0015636,95999.0,95983.0,0.052152]
[1734956048508,0.2183,96029.0,96006.0,0.052139]
[1734956048804,0.24554525,96013.0,96006.0,0.412939]
[1734956049005,0.27623841,96020.0,96012.0,0.3608]
[1734956049306,0.112,96043.0,96034.0,0.052124]
[1734956049508,0.112,96043.0,96039.0,0.052121]
[1734956049805,0.112,96043.0,96041.0,0.05212]
[1734956050601,0.12,96043.0,96041.0,0.05212]
[1734956051104,0.12,96043.0,96039.0,0.001]
[1734956052308,0.112,96043.0,96041.0,0.001]
[1734956052809,0.112,96043.0,96036.0,0.052123]
[1734956053699,0.112,96043.0,96041.0,0.002]
[1734956054209,0.115,96043.0,96041.0,0.002]
[1734956055105,0.003,96043.0,96041.0,0.002]
[1734956055310,0.003,96043.0,96041.0,0.05212]
[1734956055507,0.001,96043.0,96041.0,0.05212]
[1734956055697,0.002,96043.0,96041.0,0.05212]
[1734956056206,0.01564,96052.0,96047.0,0.052117]
[1734956056407,0.01564,96052.0,96051.0,0.3608]
[1734956057309,0.21024191,96053.0,96051.0,0.412915]
[1734956057511,0.2096419,96053.0,96051.0,0.412915]
[1734956058709,0.2096419,96053.0,96051.0,0.34491499]
[1734956059114,0.2096419,96053.0,96051.0,0.34691499]
[1734956059317,0.2096419,96053.0,96051.0,0.34591499]
[1734956059814,0.2096419,96053.0,96051.0,0.34791499]
[1734956060107,0.2096419,96053.0,96051.0,0.29679999]
[1734956060413,0.2096419,96053.0,96051.0,0.008]
[1734956060607,0.10430011,96055.0,96043.0,0.3608]
[1734956061705,0.10430011,96055.0,96051.0,0.006]
[1734956062211,0.10830011,96055.0,96051.0,0.002]
[1734956062611,0.10830011,96055.0,96043.0,0.3608]
[1734956062914,0.10430011,96055.0,96051.0,0.005]
[1734956063110,0.10430011,96055.0,96043.0,0.3608]
[1734956063415,0.3608,96049.0,96035.0,0.3608]
[1734956063809,0.052119,96045.0,96035.0,0.3608]
[1734956064107,0.1058,96044.0,96035.0,0.3608]
[1734956064815,0.157919,96044.0,96035.0,0.3608]
[1734956065716,0.157919,96044.0,96035.0,0.3618]
[1734956065911,0.1058,96044.0,96035.0,0.3618]
[1734956066209,0.1058,96044.0,96035.0,0.3608]
[1734956066414,0.1058,96044.0,96035.0,0.3618]
[1734956067810,0.1058,96044.0,96035.0,0.3608]
[1734956068019,0.1058,96044.0,96035.0,0.3618]
[1734956068404,0.1078,96044.0,96035.0,0.3608]
[1734956068604,0.1078,96044.0,96035.0,0.28979999]
[1734956068605,0.1148,96044.0,96035.0,0.28979999]
[1734956069013,0.3608,96036.0,96029.0,0.052127]
[1734956069202,0.3608,96036.0,96035.0,0.003]
[1734956071111,0.3608,96036.0,96030.0,0.052126]
[1734956071621,0.3608,96036.0,96031.0,0.052126]
[1734956071824,0.3618,96036.0,96035.0,0.007]
[1734956072224,0.3608,96036.0,96026.0,0.052129]
[1734956072420,0.3608,96036.0,96030.0,0.001]
[1734956072921,0.3618,96036.0,96035.0,0.007]
[1734956074318,0.3608,96036.0,96027.0,0.052128]